[Event "Titled Tuesday Blitz December 13 Late 2022"]
[White "Novikova, Galina"]
[Black "Levine, David"]
[WhiteFideId "4157095"]
[BlackFideId "2011611"]
[WhiteElo "1953"]
[BlackElo "2145"]
[Result "1-0"]
[Round "03"]
[TimeControl "180+1"]
[Date "2022.12.14"]
[WhiteClock "0:00:19"]
[BlackClock "0:00:01"]

1. e4 {[%clk 0:03:00]}  e5 {[%clk 0:02:59]} 2. Nf3 {[%clk 0:03:00]}  Nc6 {[%clk 0:02:59]} 3. Bc4 {[%clk 0:03:00]}  Nf6 {[%clk 0:02:59]} 4. d3 {[%clk 0:02:56]}  h6 {[%clk 0:02:59]} 5. Nc3 {[%clk 0:02:54]}  g6 {[%clk 0:02:58]} 6. Be3 {[%clk 0:02:50]}  Bg7 {[%clk 0:02:58]} 7. Qd2 {[%clk 0:02:50]}  Ng4 {[%clk 0:02:57]} 8. Bc5 {[%clk 0:02:45]}  d6 {[%clk 0:02:56]} 9. Ba3 {[%clk 0:02:45]}  O-O {[%clk 0:02:49]} 10. h3 {[%clk 0:02:44]}  Nf6 {[%clk 0:02:49]} 11. g4 {[%clk 0:02:44]}  Na5 {[%clk 0:02:35]} 12. Bb3 {[%clk 0:02:40]}  Nxb3 {[%clk 0:02:33]} 13. axb3 {[%clk 0:02:41]}  c6 {[%clk 0:02:23]} 14. O-O-O {[%clk 0:02:36]}  Re8 {[%clk 0:01:53]} 15. Rhe1 {[%clk 0:02:35]}  Qc7 {[%clk 0:01:53]} 16. d4 {[%clk 0:02:35]}  b5 {[%clk 0:01:51]} 17. dxe5 {[%clk 0:02:33]}  dxe5 {[%clk 0:01:51]} 18. Bd6 {[%clk 0:02:34]}  Qb6 {[%clk 0:01:50]} 19. Bxe5 {[%clk 0:02:29]}  a5 {[%clk 0:01:43]} 20. g5 {[%clk 0:02:18]}  hxg5 {[%clk 0:01:40]} 21. Qxg5 {[%clk 0:02:19]}  Nh7 {[%clk 0:01:35]} 22. Qg3 {[%clk 0:02:15]}  a4 {[%clk 0:01:21]} 23. Bxg7 {[%clk 0:02:14]}  Kxg7 {[%clk 0:01:21]} 24. bxa4 {[%clk 0:01:29]}  b4 {[%clk 0:01:21]} 25. Nb1 {[%clk 0:01:25]}  Rxa4 {[%clk 0:01:17]} 26. Qd6 {[%clk 0:01:25]}  Be6 {[%clk 0:01:12]} 27. Qd4+ {[%clk 0:01:24]}  Qxd4 {[%clk 0:01:11]} 28. Nxd4 {[%clk 0:01:25]}  Bxh3 {[%clk 0:01:08]} 29. Nxc6 {[%clk 0:01:21]}  Bg4 {[%clk 0:01:04]} 30. Rd4 {[%clk 0:01:17]}  Ra1 {[%clk 0:00:34]} 31. f4 {[%clk 0:01:03]}  b3 {[%clk 0:00:28]} 32. c3 {[%clk 0:00:50]}  Nf6 {[%clk 0:00:23]} 33. Ne5 {[%clk 0:00:41]}  Bh5 {[%clk 0:00:17]} 34. Rb4 {[%clk 0:00:38]}  Ng4 {[%clk 0:00:04]} 35. Rxb3 {[%clk 0:00:38]}  Nxe5 {[%clk 0:00:04]} 36. fxe5 {[%clk 0:00:38]}  Rxe5 {[%clk 0:00:04]} 37. Ra3 {[%clk 0:00:35]}  Rxa3 {[%clk 0:00:04]} 38. Nxa3 {[%clk 0:00:36]}  Bf3 {[%clk 0:00:03]} 39. Nc2 {[%clk 0:00:26]}  Rxe4 {[%clk 0:00:03]} 40. Rf1 {[%clk 0:00:24]}  Bg2 {[%clk 0:00:03]} 41. Rg1 {[%clk 0:00:24]}  Bf3 {[%clk 0:00:02]} 42. Nd4 {[%clk 0:00:24]}  Bh5 {[%clk 0:00:02]} 43. b4 {[%clk 0:00:19]}  Kf6 {[%clk 0:00:02]} 44. Kb2 {[%clk 0:00:20]}  Ke5 {[%clk 0:00:01]} 45. b5 {[%clk 0:00:19]} 1-0


[Site "https://www.chess.com"]

[Event "Titled Tuesday Blitz December 13 Late 2022"]
[White "Osmonbekov, Talaibek"]
[Black "Mikhalsky, Vladimir"]
[WhiteFideId "2017253"]
[BlackFideId "14144352"]
[WhiteElo "2135"]
[BlackElo "2272"]
[Result "1-0"]
[Round "03"]
[TimeControl "180+1"]
[Date "2022.12.14"]
[WhiteClock "0:02:04"]
[BlackClock "0:00:53"]

1. d4 {[%clk 0:03:00]}  g6 {[%clk 0:02:58]} 2. Bf4 {[%clk 0:03:01]}  Bg7 {[%clk 0:02:58]} 3. Nc3 {[%clk 0:03:02]}  Nf6 {[%clk 0:02:57]} 4. e4 {[%clk 0:03:02]}  O-O {[%clk 0:02:58]} 5. Qd2 {[%clk 0:03:02]}  d6 {[%clk 0:02:58]} 6. O-O-O {[%clk 0:03:02]}  b5 {[%clk 0:02:47]} 7. Bxb5 {[%clk 0:02:59]}  c6 {[%clk 0:02:46]} 8. Bd3 {[%clk 0:02:56]}  Qb6 {[%clk 0:02:43]} 9. Nf3 {[%clk 0:02:56]}  Bg4 {[%clk 0:02:37]} 10. Na4 {[%clk 0:02:54]}  Qb7 {[%clk 0:02:34]} 11. h3 {[%clk 0:02:40]}  Bxf3 {[%clk 0:02:33]} 12. gxf3 {[%clk 0:02:41]}  Nbd7 {[%clk 0:02:30]} 13. h4 {[%clk 0:02:38]}  Nh5 {[%clk 0:02:28]} 14. Bh6 {[%clk 0:02:36]}  Bxh6 {[%clk 0:02:07]} 15. Qxh6 {[%clk 0:02:36]}  Qb4 {[%clk 0:02:07]} 16. Rhg1 {[%clk 0:02:28]}  Qxa4 {[%clk 0:01:38]} 17. Qxh5 {[%clk 0:02:27]}  Qxa2 {[%clk 0:01:38]} 18. e5 {[%clk 0:02:22]}  Qa1+ {[%clk 0:01:17]} 19. Kd2 {[%clk 0:02:21]}  Qxb2 {[%clk 0:01:17]} 20. Bxg6 {[%clk 0:02:21]}  fxg6 {[%clk 0:01:08]} 21. Rxg6+ {[%clk 0:02:20]}  Kf7 {[%clk 0:01:01]} 22. Rh6+ {[%clk 0:02:04]}  Kg7 {[%clk 0:00:53]} 23. Rg1+ {[%clk 0:02:04]}  Kh8 {[%clk 0:00:53]} 24. Rxh7# {[%clk 0:02:04]} 1-0


[Site "https://www.chess.com"]

[Event "Titled Tuesday Blitz December 13 Late 2022"]
[White "Pace, Christopher"]
[Black "Koutlas, Nikolaos"]
[WhiteFideId "2610167"]
[BlackFideId "25827138"]
[WhiteElo "2287"]
[BlackElo "2167"]
[Result "1-0"]
[Round "03"]
[TimeControl "180+1"]
[Date "2022.12.14"]
[WhiteClock "0:00:18"]
[BlackClock "0:00:43"]

1. e4 {[%clk 0:03:00]}  a6 {[%clk 0:02:55]} 2. d4 {[%clk 0:02:56]}  b5 {[%clk 0:02:54]} 3. a4 {[%clk 0:02:53]}  b4 {[%clk 0:02:53]} 4. a5 {[%clk 0:02:49]}  Bb7 {[%clk 0:02:51]} 5. Bd3 {[%clk 0:02:47]}  e6 {[%clk 0:02:51]} 6. Nf3 {[%clk 0:02:45]}  c5 {[%clk 0:02:51]} 7. dxc5 {[%clk 0:02:44]}  Bxc5 {[%clk 0:02:51]} 8. O-O {[%clk 0:02:45]}  Nf6 {[%clk 0:02:51]} 9. e5 {[%clk 0:02:38]}  Ng4 {[%clk 0:02:50]} 10. h3 {[%clk 0:02:30]}  h5 {[%clk 0:02:50]} 11. hxg4 {[%clk 0:02:14]}  hxg4 {[%clk 0:02:49]} 12. Ng5 {[%clk 0:02:15]}  g3 {[%clk 0:02:45]} 13. Qg4 {[%clk 0:01:58]}  gxf2+ {[%clk 0:02:36]} 14. Rxf2 {[%clk 0:01:58]}  Nc6 {[%clk 0:02:27]} 15. Ne4 {[%clk 0:01:30]}  Bxf2+ {[%clk 0:02:20]} 16. Kxf2 {[%clk 0:01:25]}  Nxe5 {[%clk 0:02:20]} 17. Qxg7 {[%clk 0:01:26]}  Ng6 {[%clk 0:02:13]} 18. Nf6+ {[%clk 0:01:15]}  Ke7 {[%clk 0:02:08]} 19. Bxg6 {[%clk 0:01:15]}  Qf8 {[%clk 0:01:27]} 20. Qxf8+ {[%clk 0:00:40]}  Raxf8 {[%clk 0:01:21]} 21. Be4 {[%clk 0:00:27]}  d5 {[%clk 0:01:05]} 22. Bg5 {[%clk 0:00:27]}  dxe4 {[%clk 0:01:02]} 23. Nh7+ {[%clk 0:00:27]}  f6 {[%clk 0:00:52]} 24. Nxf8 {[%clk 0:00:27]}  Rxf8 {[%clk 0:00:52]} 25. Be3 {[%clk 0:00:24]}  Rc8 {[%clk 0:00:51]} 26. c3 {[%clk 0:00:23]}  e5 {[%clk 0:00:51]} 27. cxb4 {[%clk 0:00:21]}  Rc2+ {[%clk 0:00:50]} 28. Nd2 {[%clk 0:00:22]}  f5 {[%clk 0:00:51]} 29. Bc5+ {[%clk 0:00:21]}  Ke6 {[%clk 0:00:50]} 30. Ke2 {[%clk 0:00:22]}  f4 {[%clk 0:00:49]} 31. Kd1 {[%clk 0:00:19]}  Rxb2 {[%clk 0:00:49]} 32. Kc1 {[%clk 0:00:20]}  e3 {[%clk 0:00:49]} 33. Kxb2 {[%clk 0:00:20]}  exd2 {[%clk 0:00:49]} 34. Rd1 {[%clk 0:00:20]}  Bxg2 {[%clk 0:00:49]} 35. Rxd2 {[%clk 0:00:20]}  Bd5 {[%clk 0:00:46]} 36. b5 {[%clk 0:00:19]}  axb5 {[%clk 0:00:46]} 37. a6 {[%clk 0:00:19]}  e4 {[%clk 0:00:46]} 38. Rxd5 {[%clk 0:00:19]}  e3 {[%clk 0:00:46]} 39. Bxe3 {[%clk 0:00:18]}  f3 {[%clk 0:00:43]} 40. Rd2 {[%clk 0:00:18]} 1-0


[Site "https://www.chess.com"]

[Event "Titled Tuesday Blitz December 13 Late 2022"]
[White "Paravyan, David"]
[Black "Domingo Nunez, Alejandro"]
[WhiteFideId "4194985"]
[BlackFideId "22245561"]
[WhiteElo "2551"]
[BlackElo "2242"]
[Result "1-0"]
[Round "03"]
[TimeControl "180+1"]
[Date "2022.12.13"]
[WhiteClock "0:01:38"]
[BlackClock "0:00:25"]

1. e4 {[%clk 0:03:00]}  g6 {[%clk 0:02:59]} 2. d4 {[%clk 0:03:01]}  Bg7 {[%clk 0:03:00]} 3. Nf3 {[%clk 0:03:01]}  c6 {[%clk 0:03:01]} 4. h3 {[%clk 0:03:01]}  d5 {[%clk 0:03:01]} 5. e5 {[%clk 0:03:01]}  f6 {[%clk 0:03:01]} 6. Bf4 {[%clk 0:03:00]}  Nh6 {[%clk 0:03:01]} 7. exf6 {[%clk 0:03:01]}  exf6 {[%clk 0:03:01]} 8. Bd3 {[%clk 0:03:01]}  O-O {[%clk 0:03:02]} 9. O-O {[%clk 0:03:01]}  Nf7 {[%clk 0:03:01]} 10. Re1 {[%clk 0:03:00]}  Nd7 {[%clk 0:03:00]} 11. Nbd2 {[%clk 0:02:59]}  Re8 {[%clk 0:02:59]} 12. c4 {[%clk 0:02:59]}  Nf8 {[%clk 0:02:57]} 13. Rxe8 {[%clk 0:02:56]}  Qxe8 {[%clk 0:02:56]} 14. cxd5 {[%clk 0:02:57]}  cxd5 {[%clk 0:02:56]} 15. Qb3 {[%clk 0:02:58]}  Qd8 {[%clk 0:02:40]} 16. Re1 {[%clk 0:02:55]}  Ne6 {[%clk 0:02:39]} 17. Bg3 {[%clk 0:02:55]}  f5 {[%clk 0:02:14]} 18. Nb1 {[%clk 0:02:42]}  f4 {[%clk 0:02:09]} 19. Bh2 {[%clk 0:02:41]}  g5 {[%clk 0:02:06]} 20. Nc3 {[%clk 0:02:39]}  Nc7 {[%clk 0:02:06]} 21. Qc2 {[%clk 0:02:36]}  h6 {[%clk 0:02:04]} 22. Bh7+ {[%clk 0:02:36]}  Kf8 {[%clk 0:02:00]} 23. Bg6 {[%clk 0:02:34]}  Be6 {[%clk 0:01:57]} 24. Bh5 {[%clk 0:02:20]}  Qd7 {[%clk 0:01:53]} 25. h4 {[%clk 0:02:16]}  Bf5 {[%clk 0:01:51]} 26. Qb3 {[%clk 0:02:15]}  g4 {[%clk 0:01:41]} 27. Ne5 {[%clk 0:02:11]}  Nxe5 {[%clk 0:01:41]} 28. dxe5 {[%clk 0:02:12]}  d4 {[%clk 0:01:20]} 29. Rd1 {[%clk 0:02:05]}  Ne6 {[%clk 0:01:16]} 30. Bxf4 {[%clk 0:01:51]}  Nxf4 {[%clk 0:01:14]} 31. Rxd4 {[%clk 0:01:49]}  Nxh5 {[%clk 0:00:43]} 32. Rxd7 {[%clk 0:01:48]}  Bxd7 {[%clk 0:00:44]} 33. Qxb7 {[%clk 0:01:46]}  Rd8 {[%clk 0:00:45]} 34. Qc7 {[%clk 0:01:40]}  Ke8 {[%clk 0:00:39]} 35. Ne4 {[%clk 0:01:39]}  Nf4 {[%clk 0:00:33]} 36. Nd6+ {[%clk 0:01:38]}  Ke7 {[%clk 0:00:25]} 37. Nf5+ {[%clk 0:01:38]} 1-0


[Site "https://www.chess.com"]

[Event "Titled Tuesday Blitz December 13 Late 2022"]
[White "Pasti, Aron"]
[Black "Budisavljevic, Luka"]
[WhiteFideId "785857"]
[BlackFideId "960047"]
[WhiteElo "2250"]
[BlackElo "2424"]
[Result "1/2-1/2"]
[Round "03"]
[TimeControl "180+1"]
[Date "2022.12.14"]
[WhiteClock "0:00:04"]
[BlackClock "0:01:07"]

1. e4 {[%clk 0:03:00]}  d6 {[%clk 0:02:58]} 2. d4 {[%clk 0:03:00]}  g6 {[%clk 0:02:58]} 3. f4 {[%clk 0:02:59]}  Bg7 {[%clk 0:02:57]} 4. Nf3 {[%clk 0:02:59]}  Bg4 {[%clk 0:02:57]} 5. Be2 {[%clk 0:02:54]}  Nc6 {[%clk 0:02:57]} 6. d5 {[%clk 0:02:48]}  Bxf3 {[%clk 0:02:56]} 7. Bxf3 {[%clk 0:02:42]}  Nd4 {[%clk 0:02:54]} 8. c3 {[%clk 0:02:33]}  Nxf3+ {[%clk 0:02:54]} 9. Qxf3 {[%clk 0:02:34]}  Nf6 {[%clk 0:02:51]} 10. O-O {[%clk 0:02:31]}  O-O {[%clk 0:02:51]} 11. c4 {[%clk 0:02:27]}  Nd7 {[%clk 0:02:49]} 12. Nc3 {[%clk 0:02:26]}  e6 {[%clk 0:02:46]} 13. Be3 {[%clk 0:02:24]}  exd5 {[%clk 0:02:43]} 14. cxd5 {[%clk 0:02:21]}  a6 {[%clk 0:02:43]} 15. Qf2 {[%clk 0:02:19]}  c5 {[%clk 0:02:39]} 16. dxc6 {[%clk 0:02:17]}  bxc6 {[%clk 0:02:40]} 17. Bd4 {[%clk 0:02:16]}  Nf6 {[%clk 0:02:34]} 18. Rad1 {[%clk 0:02:07]}  Qc7 {[%clk 0:02:31]} 19. Bb6 {[%clk 0:01:56]}  Qb8 {[%clk 0:02:24]} 20. Bd4 {[%clk 0:00:45]}  Re8 {[%clk 0:02:11]} 21. h3 {[%clk 0:00:43]}  Nxe4 {[%clk 0:01:58]} 22. Nxe4 {[%clk 0:00:42]}  Rxe4 {[%clk 0:01:59]} 23. Bxg7 {[%clk 0:00:41]}  Kxg7 {[%clk 0:02:00]} 24. f5 {[%clk 0:00:40]}  g5 {[%clk 0:01:32]} 25. f6+ {[%clk 0:00:39]}  Kh8 {[%clk 0:01:31]} 26. Qd2 {[%clk 0:00:26]}  d5 {[%clk 0:01:29]} 27. Qxg5 {[%clk 0:00:24]}  Qg8 {[%clk 0:01:30]} 28. Qxg8+ {[%clk 0:00:22]}  Rxg8 {[%clk 0:01:31]} 29. Rfe1 {[%clk 0:00:21]}  Rxe1+ {[%clk 0:01:24]} 30. Rxe1 {[%clk 0:00:22]}  h6 {[%clk 0:01:25]} 31. Re7 {[%clk 0:00:22]}  Rf8 {[%clk 0:01:25]} 32. h4 {[%clk 0:00:20]}  h5 {[%clk 0:01:24]} 33. Rc7 {[%clk 0:00:18]}  Kh7 {[%clk 0:01:24]} 34. Rxc6 {[%clk 0:00:19]}  Re8 {[%clk 0:01:22]} 35. Rxa6 {[%clk 0:00:17]}  Re2 {[%clk 0:01:21]} 36. b4 {[%clk 0:00:17]}  Rb2 {[%clk 0:01:21]} 37. a3 {[%clk 0:00:16]}  Kg6 {[%clk 0:01:22]} 38. Kf1 {[%clk 0:00:11]}  Kf5 {[%clk 0:01:22]} 39. Rd6 {[%clk 0:00:07]}  Ke5 {[%clk 0:01:21]} 40. Rd7 {[%clk 0:00:07]}  Ke6 {[%clk 0:01:22]} 41. Rd8 {[%clk 0:00:06]}  Rb3 {[%clk 0:01:21]} 42. Ra8 {[%clk 0:00:06]}  Kxf6 {[%clk 0:01:21]} 43. Ra5 {[%clk 0:00:06]}  Ke5 {[%clk 0:01:21]} 44. b5 {[%clk 0:00:05]}  Ke4 {[%clk 0:01:20]} 45. a4 {[%clk 0:00:05]}  d4 {[%clk 0:01:20]} 46. Ra7 {[%clk 0:00:05]}  d3 {[%clk 0:01:18]} 47. Re7+ {[%clk 0:00:04]}  Kd4 {[%clk 0:01:18]} 48. Ke1 {[%clk 0:00:04]}  Rb1+ {[%clk 0:01:13]} 49. Kd2 {[%clk 0:00:04]}  Rb2+ {[%clk 0:01:14]} 50. Kd1 {[%clk 0:00:04]}  Rxg2 {[%clk 0:01:11]} 51. b6 {[%clk 0:00:04]}  Rb2 {[%clk 0:01:05]} 52. b7 {[%clk 0:00:03]}  f5 {[%clk 0:01:06]} 53. a5 {[%clk 0:00:03]}  f4 {[%clk 0:01:06]} 54. a6 {[%clk 0:00:03]}  f3 {[%clk 0:01:06]} 55. Rd7+ {[%clk 0:00:03]}  Ke3 {[%clk 0:01:06]} 56. Re7+ {[%clk 0:00:04]}  Kd4 {[%clk 0:01:07]} 57. Rd7+ {[%clk 0:00:03]}  Ke3 {[%clk 0:01:07]} 58. Re7+ {[%clk 0:00:04]}  Kd4 {[%clk 0:01:07]} 1/2-1/2


[Site "https://www.chess.com"]

[Event "Titled Tuesday Blitz December 13 Late 2022"]
[White "Pein, Jonathan"]
[Black "Liu, Casper"]
[WhiteFideId "417092"]
[BlackFideId "1454153"]
[WhiteElo "2225"]
[BlackElo "2217"]
[Result "1-0"]
[Round "03"]
[TimeControl "180+1"]
[Date "2022.12.14"]
[WhiteClock "0:02:16"]
[BlackClock "0:00:52"]

1. Nf3 {[%clk 0:03:00]}  c5 {[%clk 0:02:56]} 2. g3 {[%clk 0:02:58]}  g6 {[%clk 0:02:53]} 3. Bg2 {[%clk 0:02:59]}  Bg7 {[%clk 0:02:54]} 4. O-O {[%clk 0:02:59]}  Nf6 {[%clk 0:02:54]} 5. d3 {[%clk 0:02:55]}  O-O {[%clk 0:02:54]} 6. e4 {[%clk 0:02:56]}  d6 {[%clk 0:02:54]} 7. c3 {[%clk 0:02:56]}  Nc6 {[%clk 0:02:53]} 8. Re1 {[%clk 0:02:53]}  Rb8 {[%clk 0:02:53]} 9. d4 {[%clk 0:02:52]}  Bg4 {[%clk 0:02:42]} 10. h3 {[%clk 0:02:45]}  Bxf3 {[%clk 0:02:41]} 11. Bxf3 {[%clk 0:02:46]}  cxd4 {[%clk 0:02:42]} 12. cxd4 {[%clk 0:02:47]}  Nd7 {[%clk 0:02:20]} 13. Be3 {[%clk 0:02:43]}  Qb6 {[%clk 0:02:02]} 14. Nc3 {[%clk 0:02:42]}  Nxd4 {[%clk 0:02:01]} 15. Bg2 {[%clk 0:02:37]}  e6 {[%clk 0:01:26]} 16. Na4 {[%clk 0:02:30]}  Qb4 {[%clk 0:01:26]} 17. a3 {[%clk 0:02:25]}  Qc4 {[%clk 0:01:20]} 18. Rc1 {[%clk 0:02:17]}  Ne2+ {[%clk 0:00:53]} 19. Rxe2 {[%clk 0:02:17]}  Qxa4 {[%clk 0:00:52]} 20. Qxa4 {[%clk 0:02:16]} 1-0


[Site "https://www.chess.com"]

[Event "Titled Tuesday Blitz December 13 Late 2022"]
[White "Rangel, Daniel"]
[Black "Harshavardhan G B"]
[WhiteFideId "2124475"]
[BlackFideId "25059009"]
[WhiteElo "2460"]
[BlackElo "2741"]
[Result "0-1"]
[Round "03"]
[TimeControl "180+1"]
[Date "2022.12.14"]
[WhiteClock "0:00:03"]
[BlackClock "0:00:28"]

1. d4 {[%clk 0:03:00]}  Nf6 {[%clk 0:02:59]} 2. c4 {[%clk 0:03:01]}  e6 {[%clk 0:02:57]} 3. Nc3 {[%clk 0:03:02]}  Bb4 {[%clk 0:02:57]} 4. e3 {[%clk 0:03:02]}  b6 {[%clk 0:02:56]} 5. Ne2 {[%clk 0:03:01]}  Bb7 {[%clk 0:02:55]} 6. a3 {[%clk 0:03:02]}  Bd6 {[%clk 0:02:55]} 7. Ng3 {[%clk 0:02:57]}  h5 {[%clk 0:02:54]} 8. d5 {[%clk 0:02:38]}  h4 {[%clk 0:02:50]} 9. Nge4 {[%clk 0:02:38]}  Nxe4 {[%clk 0:02:50]} 10. Nxe4 {[%clk 0:02:38]}  Be7 {[%clk 0:02:51]} 11. Be2 {[%clk 0:02:26]}  f5 {[%clk 0:02:49]} 12. Bh5+ {[%clk 0:02:01]}  Kf8 {[%clk 0:02:48]} 13. Nc3 {[%clk 0:02:01]}  Na6 {[%clk 0:02:40]} 14. Bf3 {[%clk 0:01:51]}  Bf6 {[%clk 0:02:29]} 15. dxe6 {[%clk 0:01:42]}  Bxf3 {[%clk 0:02:27]} 16. e7+ {[%clk 0:01:40]}  Bxe7 {[%clk 0:02:14]} 17. Qxf3 {[%clk 0:01:39]}  g6 {[%clk 0:02:14]} 18. e4 {[%clk 0:01:33]}  Kg7 {[%clk 0:02:09]} 19. exf5 {[%clk 0:01:28]}  Rf8 {[%clk 0:02:07]} 20. Qe3 {[%clk 0:01:23]}  g5 {[%clk 0:01:44]} 21. g3 {[%clk 0:01:04]}  Rxf5 {[%clk 0:01:36]} 22. gxh4 {[%clk 0:01:00]}  Qf8 {[%clk 0:01:30]} 23. hxg5 {[%clk 0:00:46]}  Re8 {[%clk 0:01:27]} 24. Kd1 {[%clk 0:00:35]}  Nc5 {[%clk 0:01:17]} 25. Qd4+ {[%clk 0:00:31]}  Kg6 {[%clk 0:01:14]} 26. h4 {[%clk 0:00:24]}  Nb3 {[%clk 0:01:00]} 27. h5+ {[%clk 0:00:23]}  Kh7 {[%clk 0:00:59]} 28. g6+ {[%clk 0:00:23]}  Kg8 {[%clk 0:00:59]} 29. Qxd7 {[%clk 0:00:15]}  Rd8 {[%clk 0:00:56]} 30. Qxd8 {[%clk 0:00:13]}  Qxd8+ {[%clk 0:00:56]} 31. Kc2 {[%clk 0:00:13]}  Nxa1+ {[%clk 0:00:56]} 32. Kb1 {[%clk 0:00:14]}  Nb3 {[%clk 0:00:43]} 33. h6 {[%clk 0:00:14]}  Bf6 {[%clk 0:00:43]} 34. h7+ {[%clk 0:00:09]}  Kh8 {[%clk 0:00:43]} 35. Bh6 {[%clk 0:00:05]}  Bg7 {[%clk 0:00:33]} 36. Bxg7+ {[%clk 0:00:03]}  Kxg7 {[%clk 0:00:34]} 37. Nd5 {[%clk 0:00:03]}  Rf8 {[%clk 0:00:28]} 0-1


[Site "https://www.chess.com"]

[Event "Titled Tuesday Blitz December 13 Late 2022"]
[White "Riff, Vincent"]
[Black "Bryant, Todd"]
[WhiteFideId "617776"]
[BlackFideId "2031299"]
[WhiteElo "2369"]
[BlackElo "2338"]
[Result "1-0"]
[Round "03"]
[TimeControl "180+1"]
[Date "2022.12.14"]
[WhiteClock "0:01:19"]
[BlackClock "0:00:04"]

1. e4 {[%clk 0:02:55]}  c5 {[%clk 0:02:59]} 2. Nc3 {[%clk 0:02:55]}  d6 {[%clk 0:02:59]} 3. Nf3 {[%clk 0:02:54]}  Nf6 {[%clk 0:02:56]} 4. g3 {[%clk 0:02:52]}  g6 {[%clk 0:02:50]} 5. Bg2 {[%clk 0:02:51]}  Bg7 {[%clk 0:02:50]} 6. O-O {[%clk 0:02:52]}  Nc6 {[%clk 0:02:49]} 7. d4 {[%clk 0:02:50]}  cxd4 {[%clk 0:02:47]} 8. Nxd4 {[%clk 0:02:50]}  h5 {[%clk 0:02:44]} 9. Nxc6 {[%clk 0:02:49]}  bxc6 {[%clk 0:02:44]} 10. e5 {[%clk 0:02:49]}  dxe5 {[%clk 0:02:16]} 11. Qxd8+ {[%clk 0:02:42]}  Kxd8 {[%clk 0:02:17]} 12. Bxc6 {[%clk 0:02:42]}  Rb8 {[%clk 0:02:13]} 13. Be3 {[%clk 0:02:41]}  Rxb2 {[%clk 0:02:02]} 14. Bxa7 {[%clk 0:02:38]}  Ba6 {[%clk 0:01:58]} 15. Rfd1+ {[%clk 0:02:23]}  Kc7 {[%clk 0:01:57]} 16. Ba4 {[%clk 0:02:21]}  Rb7 {[%clk 0:01:47]} 17. Bc5 {[%clk 0:02:19]}  e6 {[%clk 0:00:55]} 18. Bd6+ {[%clk 0:02:11]}  Kb6 {[%clk 0:00:53]} 19. Bxe5 {[%clk 0:02:08]}  h4 {[%clk 0:00:35]} 20. Rd6+ {[%clk 0:01:58]}  Ka5 {[%clk 0:00:31]} 21. Bc6 {[%clk 0:01:29]}  Rb6 {[%clk 0:00:24]} 22. Na4 {[%clk 0:01:30]}  Rxc6 {[%clk 0:00:11]} 23. Rxc6 {[%clk 0:01:28]}  Bb5 {[%clk 0:00:12]} 24. Rc7 {[%clk 0:01:26]}  Kxa4 {[%clk 0:00:12]} 25. Rxf7 {[%clk 0:01:24]}  Nh5 {[%clk 0:00:08]} 26. Bxg7 {[%clk 0:01:21]}  Nxg7 {[%clk 0:00:09]} 27. Rxg7 {[%clk 0:01:21]}  hxg3 {[%clk 0:00:10]} 28. fxg3 {[%clk 0:01:20]}  Rc8 {[%clk 0:00:08]} 29. Ra7+ {[%clk 0:01:20]}  Kb4 {[%clk 0:00:06]} 30. Rb1+ {[%clk 0:01:20]}  Kc5 {[%clk 0:00:04]} 31. Ra5 {[%clk 0:01:20]}  Rb8 {[%clk 0:00:04]} 32. a4 {[%clk 0:01:19]} 1-0


[Site "https://www.chess.com"]